bitfinex/quotes_SOLUSD_20251120
["timestamp","ask_amount","ask_price","bid_price","bid_amount"]
[1763648643151,1.76,140.96,140.92,7.00356803]
[1763648643341,1.76,140.96,140.89,0.18]
[1763648643543,1.76,140.96,140.93,7.00356803]
[1763648643850,1.76,140.96,140.95,7.00356803]
[1763648644057,1.76,140.98,140.95,7.00356803]
[1763648644349,1.76,140.98,140.94,7.00356803]
[1763648644556,0.69,140.97,140.93,7.00356803]
[1763648644922,0.69,140.97,140.92,7.00356803]
[1763648645349,0.69,140.97,140.93,7.00356803]
[1763648645725,7.00356803,140.95,140.9,7.00356803]
[1763648645926,7.00356803,140.95,140.89,7.00356803]
[1763648646154,16.54878585,140.94,140.88,7.00356803]
[1763648646353,9.78882769,140.93,140.87,7.00356803]
[1763648646531,32.90974585,140.94,140.89,7.00356803]
[1763648646728,2.45,140.93,140.89,7.00356803]
[1763648647157,0.69,140.92,140.89,7.00356803]
[1763648647456,0.69,140.92,140.87,7.00356803]
[1763648647634,7.69356803,140.92,140.87,7.00356803]
[1763648648038,7.0967284,140.91,140.87,7.00356803]
[1763648648348,1.76,140.93,140.9,7.00356803]
[1763648648651,7.69356803,140.98,140.92,7.00356803]
[1763648648859,7.69356803,140.98,140.88,7.18356803]
[1763648648860,1.76,140.98,140.96,7.00356803]
[1763648649027,1.76,140.98,140.89,0.70977358]
[1763648649028,1.76,140.98,140.89,0.88977358]
[1763648649223,1.76,140.98,140.96,7.00356803]
[1763648649667,2.45,140.98,140.95,7.00356803]
[1763648649851,0.69,140.97,140.95,7.00356803]
[1763648650738,14.7873949,140.97,140.93,7.00356803]
[1763648650939,7.78382687,140.97,140.88,32.40260828]
[1763648651138,7.78382687,140.97,140.86,2.46992474]
[1763648651139,0.69,140.96,140.91,7.00356803]
[1763648651335,1.76,140.95,140.91,7.00356803]
[1763648651525,1.76,140.95,140.92,7.00356803]
[1763648651727,2.45,140.95,140.91,7.00356803]
[1763648652033,7.00356803,140.92,140.83,6.80276199]
[1763648652346,1.76,140.91,140.87,7.00356803]
[1763648652540,1.76,140.91,140.83,0.18]
[1763648652541,16.55039187,140.91,140.83,0.18]
[1763648652742,16.55039187,140.91,140.82,0.2]
[1763648652743,7.00356803,140.89,140.82,0.2]
[1763648652945,7.00356803,140.89,140.84,7.00356803]
[1763648653135,7.69356803,140.88,140.84,7.00356803]
[1763648653340,9.45356803,140.88,140.84,7.00356803]
[1763648653572,0.69,140.87,140.82,0.2]
[1763648653769,7.69356803,140.87,140.82,7.20356803]
[1763648653940,0.69,140.86,140.82,7.20356803]
[1763648654138,8.76356803,140.85,140.82,0.2]
[1763648654342,7.00356803,140.83,140.82,0.2]
[1763648654680,0.69,140.84,140.82,0.2]
[1763648654859,0.69,140.83,140.82,0.2]
[1763648655771,7.69356803,140.83,140.82,0.2]
[1763648656387,24.5831555,140.83,140.82,0.2]
[1763648656688,25.91171978,140.83,140.82,0.2]
[1763648656984,18.81096,140.83,140.82,0.2]
[1763648657162,20.57096,140.83,140.82,0.2]
[1763648657366,1.76,140.83,140.82,7.20356803]
[1763648657581,1.76,140.83,140.82,0.2]
[1763648658079,1.58,140.83,140.82,7.38356803]
[1763648658284,1.76,140.91,140.82,25.23442408]
[1763648658452,1.76,140.91,140.85,7.00356803]
[1763648658453,0.69,140.89,140.85,7.00356803]
[1763648658658,0.69,140.89,140.86,7.00356803]
[1763648658867,25.12452803,140.87,140.82,0.2]
[1763648659054,7.00356803,140.86,140.82,0.2]
[1763648659258,1.76,140.85,140.82,0.2]
[1763648659478,1.76,140.85,140.83,7.00356803]
[1763648659859,1.76,140.85,140.84,7.00356803]
[1763648660075,1.76,140.85,140.82,0.2]
[1763648660254,1.76,140.85,140.82,7.30112858]
[1763648660754,1.76,140.85,140.82,0.2]
[1763648661186,1.76,140.85,140.82,7.20356803]
[1763648661364,1.76,140.85,140.83,7.00356803]
[1763648661681,1.76,140.85,140.82,0.2]
[1763648661879,1.76,140.85,140.83,7.00356803]
[1763648662195,0.7,140.84,140.82,7.20356803]
[1763648662380,0.7,140.84,140.82,0.2]
[1763648662573,7.8004799,140.84,140.82,0.2]
[1763648662958,0.7,140.83,140.82,0.2]
[1763648664275,7.80075978,140.83,140.82,0.2]
[1763648664580,0.7,140.83,140.82,0.2]
[1763648664783,9.56075978,140.83,140.82,0.2]
[1763648666480,16.56432781,140.83,140.82,0.2]
[1763648666873,21.76328466,140.83,140.82,0.2]
[1763648667876,20.58096,140.83,140.82,0.2]
[1763648668208,0.7,140.86,140.82,12.40252488]
[1763648668492,1.76,140.86,140.85,12.20252488]
[1763648669490,2.43,140.86,140.83,12.20252488]
[1763648669878,0.67,140.85,140.82,0.2]
[1763648670082,12.87252488,140.85,140.82,0.2]
[1763648670462,12.20252488,140.83,140.82,0.2]
[1763648670683,21.06328466,140.83,140.82,0.2]
[1763648670887,21.73328466,140.83,140.82,0.2]
[1763648672275,7.0997515,140.85,140.82,0.2]
[1763648672478,1.76,140.84,140.82,12.40252488]
[1763648673003,1.76,140.84,140.82,0.2]
[1763648673490,8.86030794,140.84,140.82,0.2]
[1763648674362,1.76,140.84,140.82,12.40252488]
[1763648674563,1.76,140.84,140.83,12.20252488]
[1763648674795,1.76,140.84,140.82,0.2]
[1763648675090,9.53030942,140.84,140.82,0.2]
[1763648675477,0.67,140.83,140.82,0.2]
[1763648675964,12.87252488,140.83,140.82,0.2]
[1763648676670,19.97328466,140.83,140.82,0.2]
[1763648678388,19.30328466,140.83,140.82,0.2]
[1763648678605,19.97328466,140.83,140.82,0.2]
[1763648679110,1.76,140.83,140.82,12.40252488]
[1763648679999,18.79096,140.87,140.82,12.40252488]
[1763648680216,1.76,140.86,140.84,12.20252488]
[1763648681116,25.21919963,140.88,140.85,12.20252488]
[1763648681413,1.76,140.87,140.84,12.20252488]
[1763648682189,2.43,140.87,140.84,12.20252488]
[1763648682486,12.87252488,140.86,140.82,0.2]
[1763648682683,0.67,140.86,140.82,12.40252488]
[1763648682989,8.85887857,140.87,140.84,12.20252488]
[1763648683506,9.52887857,140.87,140.84,12.20252488]
[1763648683710,9.52887857,140.87,140.83,12.20252488]
[1763648684009,0.67,140.86,140.82,12.40252488]
[1763648684381,12.87252488,140.86,140.82,12.40252488]
[1763648684792,12.20252488,140.86,140.82,12.40252488]
[1763648685010,12.87252488,140.86,140.82,12.40252488]
[1763648685308,8.85875314,140.87,140.83,12.20252488]
[1763648685507,9.52875314,140.87,140.83,12.20252488]
[1763648685810,8.85875314,140.87,140.84,12.20252488]
[1763648686116,9.52875314,140.87,140.84,12.20252488]
[1763648686495,8.85891703,140.87,140.84,12.20252488]
[1763648687009,1.76,140.87,140.85,12.20252488]
[1763648687384,8.85890362,140.87,140.85,12.20252488]
[1763648687607,1.76,140.87,140.85,12.20252488]
[1763648687822,1.76,140.87,140.84,12.20252488]
[1763648687984,8.85888731,140.87,140.82,0.2]
[1763648688183,9.52888731,140.87,140.83,12.20252488]
[1763648688401,9.52888731,140.87,140.82,0.2]
[1763648688608,12.30252488,141.0,140.83,0.71007597]
[1763648688794,0.67,140.92,140.88,12.20252488]
[1763648688993,1.76,140.91,140.87,12.20252488]
[1763648689492,7.76723207,140.9,140.87,12.20252488]
[1763648689922,0.67,140.9,140.87,12.20252488]
[1763648690115,8.85684182,140.91,140.87,12.20252488]
[1763648690287,9.56674289,140.91,140.87,12.20252488]
[1763648691015,12.91252488,140.9,140.82,0.9101264]
[1763648691310,7.09773582,140.89,140.85,12.20252488]
[1763648691517,1.76,140.88,140.85,12.20252488]
[1763648691720,18.12096,140.93,140.87,12.20252488]
[1763648691911,18.12096,140.93,140.89,12.20252488]
[1763648691912,1.76,140.92,140.89,12.20252488]
[1763648692106,1.76,140.92,140.91,12.20252488]
[1763648692937,1.76,140.92,140.84,24.03364602]
[1763648692938,9.5662248,140.92,140.84,24.03364602]
[1763648693097,8.8562248,140.92,140.88,12.20252488]
[1763648693432,1.76,140.92,140.89,12.20252488]
[1763648693607,8.8563406,140.92,140.89,12.20252488]
[1763648694193,1.76,140.92,140.89,12.20252488]
[1763648694515,2.47,140.92,140.9,12.20252488]
[1763648695018,2.47,140.92,140.89,12.20252488]
[1763648695897,9.56622626,140.92,140.89,12.20252488]
[1763648696395,0.71,140.91,140.88,12.20252488]
[1763648696904,0.71,140.91,140.85,7.09973732]
[1763648696905,8.85622626,140.92,140.89,12.20252488]
[1763648697302,9.56622626,140.92,140.89,12.20252488]
[1763648697892,8.85622626,140.92,140.88,12.20252488]
[1763648698091,9.56622626,140.92,140.88,12.20252488]
[1763648698506,1.76,140.92,140.89,12.20252488]
[1763648698798,1.76,140.93,140.91,12.20252488]
[1763648699002,1.76,140.93,140.92,12.20252488]
[1763648699222,1.76,140.93,140.91,12.20252488]
[1763648699918,0.71,140.92,140.87,7.09839515]
[1763648700123,0.71,140.92,140.85,18.12096]
[1763648700124,0.71,140.92,140.88,12.20252488]
[1763648700328,14.30252487,141.0,140.93,18.12096]
[1763648700329,0.1,141.0,140.93,18.12096]
[1763648700524,0.1,141.0,140.99,12.20252488]
[1763648700737,0.1,141.07,141.02,18.12096]
[1763648700895,0.1,141.07,141.06,12.20252488]
[1763648701214,2.57,141.07,141.04,12.20252488]
[1763648701415,2.57,141.07,141.02,12.20252488]
[1763648701598,0.71,141.06,141.03,4.74505411]
[1763648701921,0.71,141.06,141.01,12.20252488]
[1763648702104,12.20252488,141.05,140.96,5.91268602]
[1763648702423,7.08926347,141.06,141.02,12.20252488]
[1763648702627,0.1,141.07,141.02,12.20252488]
[1763648702628,2.47,141.05,141.02,12.20252488]
[1763648702799,1.76,141.05,140.99,18.12096]
[1763648703134,2.47,141.05,141.02,12.20252488]
[1763648703516,0.71,141.04,141.01,12.20252488]
[1763648703909,12.20252488,141.02,140.92,5.91268602]
[1763648704122,13.96252488,141.01,140.96,12.20252488]
[1763648704324,0.71,141.0,140.95,12.20252488]
[1763648704500,12.91252488,141.0,140.95,12.20252488]
[1763648704700,0.71,141.0,140.94,12.20252488]
[1763648704915,1.76,141.01,140.88,6.62250998]
[1763648704916,12.20252488,140.98,140.88,6.62250998]
[1763648705104,1.76,140.97,140.94,12.20252488]
[1763648705612,0.71,140.96,140.94,12.20252488]
[1763648705930,7.80452086,140.96,140.9,18.12096]
[1763648706103,7.80452086,140.96,140.93,12.20252488]
[1763648706498,0.71,140.96,140.94,12.20252488]
[1763648707522,2.47,140.96,140.95,12.20252488]
[1763648707701,1.76,140.96,140.95,12.20252488]
[1763648709612,0.71,140.98,140.95,12.20252488]
[1763648709819,1.76,140.97,140.96,12.20252488]
[1763648710322,2.47,140.97,140.93,12.20252488]
[1763648710530,0.71,140.96,140.94,12.20252488]
[1763648710838,0.71,140.96,140.88,7.09807405]
[1763648711132,31.03348488,140.96,140.85,6.62266117]
[1763648711302,26.58801421,140.97,140.82,0.2]
[1763648711303,18.12096,140.89,140.82,0.2]
[1763648711507,13.96252488,140.88,140.83,4.73247486]
[1763648711733,13.96252488,140.88,140.82,12.40252488]
[1763648711939,12.20252488,140.86,140.82,0.2]
[1763648712105,7.0997515,140.85,140.82,0.2]
[1763648712430,21.99135257,140.83,140.77,0.2]
[1763648712632,12.20252488,140.81,140.77,0.2]
[1763648712928,1.76,140.8,140.77,12.40252488]
[1763648713535,2.47,140.8,140.77,12.40252488]
[1763648713736,18.12096,140.84,140.78,12.20252488]
[1763648714031,18.12096,140.84,140.79,12.20252488]
[1763648714032,2.47,140.83,140.79,12.20252488]
[1763648714445,9.78882769,140.85,140.82,12.20252488]
[1763648714446,0.71,140.85,140.82,12.20252488]
[1763648714632,1.76,140.83,140.82,12.20252488]
[1763648715104,0.71,140.87,140.82,12.20252488]
[1763648715304,1.76,140.86,140.85,12.20252488]
[1763648715515,1.76,140.86,140.84,12.20252488]
[1763648715719,1.76,140.85,140.83,12.20252488]
[1763648715920,1.76,140.85,140.84,12.20252488]
[1763648716452,2.47,140.85,140.82,12.20252488]
[1763648716742,1.76,140.85,140.84,12.20252488]
[1763648717931,1.76,140.85,140.81,0.2]
[1763648718233,1.76,140.85,140.84,12.20252488]
[1763648719014,1.76,140.85,140.81,7.10156124]
[1763648719215,0.71,140.84,140.8,7.10218664]
[1763648719529,0.71,140.84,140.82,12.20252488]
[1763648720435,1.76,140.85,140.83,12.20252488]
[1763648720739,1.76,140.85,140.8,7.10224296]
[1763648720740,0.68,140.84,140.82,12.20252488]
[1763648720955,0.68,140.84,140.81,12.20252488]
[1763648721249,0.68,140.91,140.83,12.20252488]
[1763648721405,12.20252488,140.89,140.83,12.20252488]
[1763648721610,12.20252488,140.87,140.77,7.30353609]
[1763648721841,1.76,140.86,140.81,12.20252488]
[1763648722220,0.68,140.85,140.81,12.20252488]
[1763648722424,7.7798024,140.85,140.81,12.20252488]
[1763648722643,0.68,140.85,140.81,12.20252488]
[1763648722818,0.68,140.84,140.78,7.10281914]
[1763648723017,0.68,140.84,140.8,12.20252488]
[1763648723217,0.68,140.84,140.79,12.20252488]
[1763648723422,0.68,140.84,140.8,12.20252488]
[1763648723618,0.68,140.84,140.79,12.20252488]
[1763648723840,12.20252488,140.82,140.77,0.2]
[1763648724051,1.76,140.81,140.77,0.2]
[1763648724333,8.86227272,140.8,140.72,0.4]
[1763648724507,9.54227272,140.8,140.76,12.20252488]
[1763648724711,2.44,140.8,140.76,12.20252488]
[1763648724906,0.68,140.79,140.76,12.20252488]
[1763648725553,1.76,140.81,140.78,12.20252488]
[1763648725713,1.76,140.81,140.77,12.20252488]
[1763648725913,1.76,140.81,140.78,12.20252488]
[1763648726136,0.68,140.8,140.78,12.20252488]
[1763648726639,0.68,140.8,140.77,12.20252488]
[1763648727212,0.68,140.8,140.76,12.20252488]
[1763648727426,0.68,140.8,140.71,36.08767291]
[1763648727427,29.77375359,140.8,140.74,12.20252488]
[1763648727831,0.68,140.79,140.74,12.20252488]
[1763648728026,1.76,140.78,140.74,12.20252488]
[1763648728422,0.68,140.77,140.74,12.20252488]
[1763648728938,0.68,140.77,140.74,7.01337554]
[1763648729317,7.78384855,140.77,140.73,7.01337554]
[1763648729517,14.79722409,140.77,140.71,0.2]
[1763648729812,0.68,140.76,140.72,7.01337554]
[1763648730026,1.76,140.75,140.71,0.2]
[1763648730232,1.76,140.75,140.71,7.21337554]
[1763648730426,0.68,140.77,140.73,7.01337554]
[1763648730716,1.76,140.74,140.73,7.01337554]
[1763648731134,18.12096,140.78,140.73,7.01337554]
[1763648731337,1.76,140.77,140.71,25.07377675]
[1763648731534,2.44,140.77,140.73,7.01337554]
[1763648731872,0.68,140.76,140.72,7.01337554]
[1763648732034,0.68,140.76,140.71,0.2]
[1763648732241,0.68,140.76,140.73,7.01337554]
[1763648732741,7.78431047,140.76,140.71,0.2]
[1763648732937,0.68,140.76,140.73,7.01337554]
[1763648733168,7.76328171,140.78,140.74,7.01337554]
[1763648733360,1.76,140.75,140.71,7.3067081]
[1763648733668,1.76,140.75,140.74,7.01337554]
[1763648734971,1.76,140.75,140.72,7.10586349]
[1763648734972,9.78882769,140.74,140.71,0.2]
[1763648735150,10.44882769,140.74,140.71,0.2]
[1763648735341,0.66,140.73,140.71,0.2]
[1763648735539,1.76,140.75,140.72,7.01337554]
[1763648735737,1.76,140.75,140.71,7.30681543]
[1763648735938,1.76,140.75,140.72,7.01337554]
[1763648736256,1.76,140.75,140.73,7.01337554]
[1763648736639,9.78882769,140.8,140.74,7.41337554]
[1763648736845,1.76,140.79,140.76,7.01337554]
[1763648737342,1.76,140.79,140.78,7.01337554]
[1763648738067,0.66,140.81,140.78,7.01337554]
[1763648738068,1.76,140.8,140.78,7.01337554]
[1763648738380,1.76,140.8,140.77,7.01337554]
[1763648738583,1.76,140.8,140.78,7.01337554]
[1763648738977,0.66,140.83,140.79,7.01337554]
[1763648739484,0.66,140.85,140.81,7.01337554]
[1763648739989,1.76,140.84,140.82,7.01337554]
[1763648740354,1.76,140.84,140.83,7.01337554]
[1763648740776,0.66,140.86,140.83,7.01337554]
[1763648740954,0.66,140.86,140.85,7.01337554]
[1763648740955,1.76,140.86,140.85,7.01337554]
[1763648741355,1.76,140.86,140.84,7.01337554]
[1763648741786,0.66,140.85,140.78,7.50328171]
[1763648741996,18.78096,140.85,140.81,7.01337554]
[1763648742297,18.78096,140.85,140.82,7.01337554]
[1763648742583,0.66,140.85,140.82,7.01337554]
[1763648742884,7.09993546,140.85,140.82,7.01337554]
[1763648743185,7.09993546,140.85,140.75,18.83143957]
[1763648743186,7.01337554,140.84,140.75,18.83143957]
[1763648743394,7.01337554,140.84,140.74,0.4]
[1763648743395,16.80220323,140.82,140.77,7.01337554]
[1763648743543,7.01337554,140.82,140.72,7.01337554]
[1763648743744,0.66,140.81,140.73,5.11120624]
[1763648743981,1.76,140.8,140.73,0.4]
[1763648744281,1.76,140.8,140.77,7.01337554]
[1763648744475,8.86237739,140.8,140.77,7.01337554]
[1763648744678,9.52237739,140.8,140.77,7.01337554]
[1763648745086,2.42,140.8,140.77,7.01337554]
[1763648745750,8.86228926,140.8,140.73,0.4]
[1763648745950,9.78882769,140.78,140.74,7.01337554]
[1763648746165,1.76,140.77,140.75,7.01337554]
[1763648746361,1.76,140.77,140.76,7.01337554]
[1763648747691,1.76,140.77,140.72,25.22723906]
[1763648747991,1.76,140.77,140.76,7.01337554]
[1763648748374,18.12096,140.8,140.76,7.01337554]
[1763648748375,1.76,140.78,140.76,7.01337554]
[1763648748680,1.76,140.78,140.77,7.01337554]
[1763648749362,1.76,140.8,140.77,7.01337554]
[1763648749770,1.76,140.8,140.78,7.01337554]
[1763648750166,0.69,140.79,140.77,7.01337554]
[1763648750364,1.76,140.8,140.78,7.01337554]
[1763648750564,1.76,140.8,140.79,7.01337554]
[1763648750796,28.05350216,140.96,140.79,7.01337554]
[1763648750797,7.78942026,140.86,140.79,11.74735261]
[1763648750980,1.76,140.83,140.82,7.01337554]
[1763648751893,2.45,140.83,140.81,7.01337554]
[1763648752090,1.76,140.83,140.81,7.01337554]
[1763648752396,1.76,140.83,140.82,7.01337554]
[1763648752697,1.76,140.83,140.79,7.50244913]
[1763648752895,1.76,140.83,140.82,7.01337554]
[1763648753106,0.69,140.82,140.78,18.12096]
[1763648753307,1.76,140.83,140.8,7.01337554]
[1763648753606,2.45,140.83,140.81,4.74522087]
[1763648753783,1.76,140.83,140.81,7.01337554]
[1763648753987,1.76,140.83,140.8,7.01337554]
[1763648754184,1.76,140.83,140.81,4.74526665]
[1763648754483,1.76,140.83,140.77,5.89051644]
[1763648754484,1.76,140.83,140.79,7.01337554]
[1763648754674,1.76,140.83,140.8,4.75061027]
[1763648754877,8.86075978,140.83,140.79,7.01337554]
[1763648755175,0.69,140.82,140.8,4.75061179]
[1763648755500,0.69,140.82,140.81,4.75061179]
[1763648756772,1.76,140.83,140.81,4.75061179]
[1763648756975,1.76,140.83,140.82,4.75061179]
[1763648757598,2.45,140.83,140.82,4.75061179]
[1763648758283,1.76,140.83,140.82,4.75061179]
[1763648758674,2.45,140.83,140.82,4.75061179]
[1763648758979,9.55075978,140.83,140.82,4.75061179]
[1763648759174,2.45,140.83,140.82,4.75061179]
[1763648759372,9.55075978,140.83,140.82,4.75061179]
[1763648759775,2.45,140.83,140.82,4.75061179]
[1763648759974,2.45,140.83,140.82,11.76398733]
[1763648759975,1.76,140.83,140.82,11.76398733]
[1763648760184,1.76,140.85,140.82,19.26525135]
[1763648760502,7.70337554,140.9,140.84,7.01337554]
[1763648760668,1.76,140.89,140.87,7.01337554]
[1763648760865,1.76,140.89,140.88,7.01337554]
[1763648761105,0.69,140.92,140.88,12.17180834]
[1763648761106,1.76,140.92,140.88,12.17180834]
[1763648761310,1.76,140.92,140.9,7.01337554]
[1763648761605,1.76,140.92,140.88,0.4]
[1763648761606,1.76,140.92,140.91,7.01337554]
[1763648762110,1.76,140.92,140.91,11.76912893]
[1763648762405,1.76,140.97,140.91,12.16912893]
[1763648762709,1.76,140.97,140.94,7.01337554]
[1763648762912,0.69,140.98,140.95,7.01337554]
[1763648763113,1.76,140.97,140.96,7.01337554]
[1763648763814,1.76,140.99,140.96,7.01337554]
[1763648763995,2.45,140.99,140.96,7.01337554]
[1763648764192,7.70337554,140.98,140.9,5.89051644]
[1763648764407,0.69,140.98,140.94,7.01337554]
[1763648765110,14.79696618,140.98,140.9,1.76]
[1763648765408,14.79696618,140.98,140.85,12.62537614]
[1763648765409,7.01337554,140.96,140.91,7.01337554]
[1763648765720,1.76,140.95,140.89,0.4]
[1763648765886,8.77337554,140.95,140.9,7.01337554]
[1763648766088,0.69,140.94,140.9,7.01337554]
[1763648766290,7.70337554,140.94,140.85,6.60049159]
[1763648766613,7.70337554,140.94,140.88,7.01337554]
[1763648766614,0.69,140.94,140.88,7.01337554]
[1763648766813,25.82433554,140.93,140.88,7.01337554]
[1763648766996,8.856313,140.92,140.88,7.01337554]
[1763648767196,16.55968854,140.92,140.88,7.01337554]
[1763648767502,16.55968854,140.92,140.83,33.80030413]
[1763648767503,25.13433554,140.89,140.81,5.89051644]
[1763648767705,7.01337554,140.87,140.82,11.7523759]
[1763648767906,7.01337554,140.87,140.82,7.01337554]
[1763648768216,0.69,140.86,140.82,7.01337554]
[1763648768419,1.76,140.85,140.82,7.01337554]
[1763648768581,1.76,140.85,140.78,7.50321521]
[1763648768926,0.69,140.84,140.8,7.01337554]
[1763648769211,7.01337554,140.83,140.78,7.01337554]
[1763648769404,1.76,140.82,140.78,7.01337554]
[1763648769600,1.76,140.82,140.8,7.01337554]
[1763648769925,18.12096,140.86,140.81,7.01337554]
[1763648770128,1.76,140.86,140.83,7.01337554]
[1763648770304,1.76,140.86,140.84,7.01337554]
[1763648770611,2.45,140.86,140.83,7.01337554]
[1763648771115,1.76,140.86,140.83,7.01337554]
[1763648771296,2.45,140.86,140.83,7.01337554]
[1763648772996,35.48052105,140.93,140.85,7.01337554]
[1763648772997,0.69,140.93,140.85,7.01337554]
[1763648773211,0.69,140.93,140.89,7.01337554]
[1763648773412,2.45,140.93,140.89,7.01337554]
[1763648774026,0.69,140.92,140.87,7.01337554]
[1763648774786,0.69,140.92,140.88,7.01337554]
[1763648774991,7.0967284,140.91,140.88,7.01337554]
[1763648775216,7.0967284,140.91,140.84,18.12096]
[1763648775217,1.76,140.9,140.84,18.12096]
[1763648775403,2.45,140.9,140.86,7.01337554]
[1763648775899,2.45,140.9,140.84,18.12096]
[1763648775900,1.76,140.91,140.88,7.01337554]
[1763648776093,0.69,140.9,140.88,7.01337554]
[1763648776293,0.69,140.9,140.84,25.22116632]
[1763648776618,0.69,140.9,140.88,7.01337554]
[1763648776989,7.78725777,140.9,140.87,7.01337554]
[1763648777186,14.80063331,140.9,140.85,7.01337554]
[1763648777411,1.76,140.91,140.86,7.01337554]
[1763648777716,0.69,140.89,140.86,7.01337554]
[1763648777921,1.76,140.88,140.86,7.01337554]
[1763648778585,1.76,140.88,140.81,42.97714919]
[1763648778586,0.69,140.87,140.85,7.01337554]
[1763648779095,1.76,140.88,140.85,7.01337554]
[1763648779293,2.45,140.88,140.85,7.01337554]
[1763648779709,2.45,140.88,140.86,7.01337554]
[1763648780120,9.54829077,140.88,140.85,7.01337554]
[1763648780792,0.7,140.87,140.85,7.01337554]
[1763648780992,0.7,140.87,140.82,7.10113918]
[1763648781193,19.88096,140.9,140.86,7.01337554]
[1763648781399,19.88096,140.9,140.87,7.01337554]
[1763648781691,20.58096,140.9,140.87,7.01337554]
[1763648782397,0.7,140.89,140.86,7.01337554]
[1763648782811,0.7,140.89,140.82,5.89051644]
[1763648783108,0.7,140.89,140.85,7.01337554]
[1763648783400,19.88096,140.9,140.87,7.01337554]
[1763648783700,0.7,140.89,140.84,7.1000474]
[1763648783900,19.88096,140.9,140.87,7.01337554]
[1763648784309,20.58096,140.9,140.87,7.01337554]
[1763648784623,25.91834385,140.9,140.87,7.01337554]
[1763648784827,1.76,140.89,140.87,7.01337554]
[1763648785829,1.76,140.89,140.85,17.7487029]
[1763648785997,1.76,140.89,140.88,7.01337554]
[1763648787039,1.76,140.89,140.83,5.89051644]
[1763648787040,2.46,140.89,140.83,5.89051644]
[1763648787197,2.46,140.89,140.86,7.01337554]
[1763648788218,2.46,140.89,140.85,7.09962722]
[1763648788219,1.76,140.89,140.87,7.01337554]
[1763648788626,1.76,140.89,140.88,7.01337554]
[1763648788805,1.76,140.89,140.88,12.18513319]
[1763648789410,27.90978769,140.94,140.88,12.18513319]
[1763648789411,0.68,140.96,140.88,24.43477343]
[1763648789618,1.76,140.95,140.91,12.18513319]
[1763648789848,16.88253557,140.97,140.89,4.75140061]
[1763648789849,1.76,140.97,140.94,12.18513319]
[1763648789996,1.76,140.97,140.95,12.18513319]
[1763648790612,0.68,140.96,140.94,12.18513319]
[1763648790924,0.68,140.96,140.89,5.89051644]
[1763648791131,0.68,140.96,140.9,4.74959481]
[1763648791340,0.68,140.96,140.93,12.18513319]
[1763648791538,7.77431645,140.96,140.93,12.18513319]
[1763648791696,7.77431645,140.96,140.92,12.18513319]
[1763648791899,0.68,140.95,140.91,12.18513319]
[1763648792129,1.76,140.94,140.92,4.75107141]
[1763648792301,9.78882769,140.97,140.93,16.9362046]
[1763648792302,1.76,140.97,140.93,16.9362046]
[1763648792496,1.76,140.97,140.96,12.18513319]
[1763648792733,1.76,140.97,140.95,12.18513319]
[1763648792932,1.76,140.97,140.94,12.18513319]
[1763648793100,0.68,140.96,140.94,12.18513319]
[1763648793902,0.68,140.96,140.95,4.75134273]
[1763648794317,1.76,140.97,140.95,16.93647592]
[1763648794505,2.44,140.97,140.95,12.18513319]
[1763648794706,0.1,141.0,140.96,16.93559313]
[1763648794911,0.1,141.0,140.99,12.18513319]
[1763648795904,0.1,141.0,140.95,0.4]
[1763648796105,0.1,141.0,140.99,12.18513319]
[1763648796816,0.1,141.0,140.99,17.33052561]
[1763648797016,0.1,141.0,140.99,4.74539242]
[1763648797321,0.78,141.0,140.94,24.41147644]
[1763648797522,0.78,141.0,140.91,0.70967284]
[1763648797523,21.81746784,141.0,140.95,4.74381744]
[1763648797734,27.3628311,141.0,140.91,7.65051644]
[1763648797928,0.68,140.99,140.95,12.18513319]
[1763648798238,12.86513319,140.99,140.94,12.18513319]